Workbook

Sheet USER NOTES
A1: Sugarcane DRIS Calculator Notes:
A2: 1. For the DRIS calculator to work properly it is important to have an entry for each of the first 9 listed nutrients, LeafN through LeafCu. LeafSi is included for comparison of entered values with critical values, but DRIS norms for silicon are not available at this time.
A4: 2. After you enter your leaf concentrations select the Calculate DRIS Indices button. Then you will be able to view the DRIS indices alone and paired with the concentrations for each nutrient.
A6: 3. Nutrient concentrations below the critical value are colored red and concentrations above the optimum range are colored blue.
A8: 4. A negative DRIS index value indicates the nutrient is insufficient relative to other nutrient levels. A positive DRIS index value indicates the nutrient is excessive relative to other nutrients. A DRIS index value of zero or near zero indicates the nutrient is in optimum balance with other nutrients. DRIS index values less than -10 are colored red and DRIS index values greater than +10 are colored blue.
A10: 5. Nutrient Balance Index (NBI = Sum of the absolute value of all DRIS indices for a sample) is used to indicate the overall nutrient balance for a sample; the higher the number the more imbalance. NBI values greater than 80 are bolded black.
A12: 6. The DRIS values and NBI values designated out of range (red or blue) are best guess estimates at this point. Specific recommendations will be revised once analyses of research currently being conducted is completed.

Sheet LeafConcentrationsEntry
A1: Sugarcane Leaf Nutrient Concentration Entry Sheet
A2: Important!
A3: All data entry should be in the correct units for each nutrient as shown below.
A4: Note that mg/kg is the same as ppm.
A5: Also, for the DRIS calculator to work properly it is important to have an entry for each of first 9 listed nutrients (Si is optional).
A6: SampleID | B6: LeafN | C6: LeafP | D6: LeafK | E6: LeafCa | F6: LeafMg | G6: LeafFe | H6: LeafMn | I6: LeafZn | J6: LeafCu | K6: LeafSi
B8: ---------------------------------%------------------------------ | G8: -------------------------mg/kg----------------------- | K8: %
A9: Fielda | B9: 2.58 | C9: 0.217 | D9: 1.33 | E9: 0.3 | F9: 0.13 | G9: 44 | H9: 6 | I9: 18 | J9: 4.6 | K9: 0.6
A10: Fieldb | B10: 2.44 | C10: 0.241 | D10: 1.54 | E10: 0.42 | F10: 0.17 | G10: 57 | H10: 10 | I10: 20 | J10: 5.9 | K10: 0.4
A11: Fieldc | B11: 2.76 | C11: 0.289 | D11: 1.78 | E11: 0.37 | F11: 0.21 | G11: 60 | H11: 16 | I11: 21 | J11: 7.3 | K11: 0.8
A12: Fieldd | B12: 2.61 | C12: 0.224 | D12: 1.6 | E12: 0.36 | F12: 0.18 | G12: 64 | H12: 10 | I12: 21 | J12: 7.6 | K12: 0.2
A13: Fielde | B13: 2.93 | C13: 0.283 | D13: 1.7 | E13: 0.44 | F13: 0.14 | G13: 67 | H13: 23 | I13: 21 | J13: 6.2 | K13: 0.6
A14: Fieldf | B14: 2.8 | C14: 0.325 | D14: 1.75 | E14: 0.51 | F14: 0.17 | G14: 63 | H14: 78 | I14: 21 | J14: 5.5 | K14: 0.5
A15: Fieldg | B15: 2.62 | C15: 0.271 | D15: 1.55 | E15: 0.46 | F15: 0.19 | G15: 58 | H15: 27 | I15: 19 | J15: 3.5 | K15: 0.2
A16: Fieldh | B16: 2.47 | C16: 0.228 | D16: 1.52 | E16: 0.56 | F16: 0.26 | G16: 91 | H16: 10 | I16: 29 | J16: 9.2 | K16: 0.5
A17: Fieldi | B17: 2.58 | C17: 0.261 | D17: 1.55 | E17: 0.46 | F17: 0.22 | G17: 67 | H17: 11 | I17: 21 | J17: 6.8 | K17: 0.58
A18: Fieldj | B18: 2.47 | C18: 0.253 | D18: 1.98 | E18: 0.52 | F18: 0.17 | G18: 74 | H18: 8 | I18: 22 | J18: 8.6 | K18: 0.68
A19: Field1 | B19: 2.28 | C19: 0.28 | D19: 1.56 | E19: 0.28 | F19: 0.28 | G19: 74 | H19: 17 | I19: 19 | J19: 5 | K19: 1.2
A20: Field2 | B20: 2.4 | C20: 0.23 | D20: 1.51 | E20: 0.21 | F20: 0.15 | G20: 81 | H20: 11 | I20: 16 | J20: 6 | K20: 1.5
A21: Field3 | B21: 1.84 | C21: 0.25 | D21: 1.38 | E21: 0.26 | F21: 0.26 | G21: 74 | H21: 13 | I21: 13 | J21: 7 | K21: 1.8
A22: Field4 | B22: 2.12 | C22: 0.26 | D22: 1.35 | E22: 0.26 | F22: 0.3 | G22: 74 | H22: 17 | I22: 16 | J22: 3 | K22: 2
A23: Field5 | B23: 2.08 | C23: 0.25 | D23: 1.65 | E23: 0.27 | F23: 0.29 | G23: 70 | H23: 44 | I23: 16 | J23: 7 | K23: 0.44
A24: Field6 | B24: 1.9 | C24: 0.31 | D24: 1.63 | E24: 0.22 | F24: 0.18 | G24: 70 | H24: 24 | I24: 18 | J24: 6 | K24: 0.51
A25: Field7 | B25: 1.9 | C25: 0.22 | D25: 1.2 | E25: 0.24 | F25: 0.28 | G25: 67 | H25: 46 | I25: 17 | J25: 7 | K25: 0.49
A26: Field8 | B26: 1.82 | C26: 0.3 | D26: 1.19 | E26: 0.2 | F26: 0.26 | G26: 69 | H26: 25 | I26: 14 | J26: 6 | K26: 0.75

Sheet DRISCalculations
A1: This sheet is protected. It is used to calculate DRIS indices on other pages in this spreadsheet.
A7: LNP | B7: FLNP | C7: LNK | D7: FLNK | E7: LCAN | F7: FLCAN | G7: LMGN | H7: FLMGN | I7: LNMN | J7: FLNMN | K7: LFEN | L7: FLFEN | M7: LZNN | N7: FLZNN | O7: LNCU | P7: FLNCU | Q7: LKP | R7: FLKP | S7: LCAP | T7: FLCAP | U7: LMGP | V7: FLMGP | W7: LPMN | X7: FLPMN | Y7: LFEP | Z7: FLFEP | AA7: LZNP | AB7: FLZNP | AC7: LPCU | AD7: FLPCU | AE7: LCAK | AF7: FLCAK | AG7: LMGK | AH7: FLMGK | AI7: LKMN | AJ7: FLKMN | AK7: LFEK | AL7: FLFEK | AM7: LZNK | AN7: FLZNK | AO7: LCUK | AP7: FLCUK | AQ7: LCAMG | AR7: FLCAMG | AS7: LCAMN | AT7: FLCAMN | AU7: LFECA | AV7: FLFECA | AW7: LCAZN | AX7: FLCAZN | AY7: LCACU | AZ7: FLCACU | BA7: LMGMN | BB7: FLMGMN | BC7: LMGFE | BD7: FLMGFE | BE7: LMGZN | BF7: FLMGZN | BG7: LMGCU | BH7: FLMGCU | BI7: LFEMN | BJ7: FLFEMN | BK7: LZNMN | BL7: FLZNMN | BM7: LMNCU | BN7: FLMNCU | BO7: LZNFE | BP7: FLZNFE | BQ7: LFECU | BR7: FLFECU | BS7: LZNCU | BT7: FLZNCU | BU7: N Index | BV7: P Index | BW7: K Index | BX7: Ca Index | BY7: Mg Index | BZ7: Fe Index | CA7: Mn Index | CB7: Zn Index | CC7: Cu Index | CD7: NBI
A9: =LN/LP -> 11.88940092 | B9: =IF(A9>9.905,((A9/8.706)-1)*(1000/13.8), IF(A9<7.507,(1-(8.706/A9))*(1000/13.8),0)) -> 26.49680981 | C9: =LN/LK -> 1.939849624 | D9: =IF(C9>1.783,((C9/1.526)-1)*(1000/16.8), IF(C9<1.269,(1-(1.526/C9))*(1000/16.8),0)) -> 16.14279567 | E9: =LCA/LN -> 0.1162790698 | F9: =IF(E9>0.183,((E9/0.151)-1)*(1000/21.2), IF(E9<0.119,(1-(0.151/E9))*(1000/21.2),0)) -> -14.08490566 | G9: =LMG/LN -> 0.0503875969 | H9: =IF(G9>0.141,((G9/0.113)-1)*(1000/24.8), IF(G9<0.085,(1-(0.113/G9))*(1000/24.8),0)) -> -50.10545906 | I9: =(LN*100)/LMN -> 43 | J9: =IF(I9>15.524,((I9/9.401)-1)*(1000/65.1), IF(I9<3.728,(1-(9.401/I9))*(1000/65.1),0)) -> 54.8998693 | K9: =LFE/(LN*100) -> 0.1705426357 | L9: =IF(K9>0.408,((K9/0.351)-1)*(1000/16.2), IF(K9<0.294,(1-(0.351/K9))*(1000/16.2),0)) -> -65.31705948 | M9: =LZN/(LN*100) -> 0.06976744186 | N9: =IF(M9>0.127,((M9/0.106)-1)*(1000/19.8), IF(M9<0.085,(1-(0.106/M9))*(1000/19.8),0)) -> -26.22895623 | O9: =(LN*10)/LCU -> 5.608695652 | P9: =IF(O9>6.883,((O9/4.998)-1)*(1000/37.7), IF(O9<3.113,(1-(4.998/O9))*(1000/37.7),0)) -> 0 | Q9: =LK/LP -> 6.129032258 | R9: =IF(Q9>6.671,((Q9/5.633)-1)*(1000/18.4), IF(Q9<4.595,(1-(5.633/Q9))*(1000/18.4),0)) -> 0 | S9: =LCA/LP -> 1.382488479 | T9: =IF(S9>1.663,((S9/1.314)-1)*(1000/26.6), IF(S9<0.965,(1-(1.314/S9))*(1000/26.6),0)) -> 0 | U9: =LMG/LP -> 0.599078341 | V9: =IF(U9>1.268,((U9/0.984)-1)*(1000/28.9), IF(U9<0.7,(1-(0.984/U9))*(1000/28.9),0)) -> -22.23263242 | W9: =(LP*100)/LMN -> 3.616666667 | X9: =IF(W9>1.772,((W9/1.086)-1)*(1000/63.2), IF(W9<0.4,(1-(1.086/W9))*(1000/63.2),0)) -> 36.87126528 | Y9: =LFE/(LP*100) -> 2.02764977 | Z9: =IF(Y9>3.595,((Y9/2.995)-1)*(1000/20), IF(Y9<2.395,(1-(2.995/Y9))*(1000/20),0)) -> -23.85397727 | AA9: =LZN/(LP*100) -> 0.8294930876 | AB9: =IF(AA9>1.124,((AA9/0.908)-1)*(1000/23.8), IF(AA9<0.692,(1-(0.908/AA9))*(1000/23.8),0)) -> 0 | AC9: =(LP*10)/LCU -> 0.4717391304 | AD9: =IF(AC9>0.827,((AC9/0.588)-1)*(1000/40.6), IF(AC9<0.349,(1-(0.588/AC9))*(1000/40.6),0)) -> 0 | AE9: =LCA/LK -> 0.2255639098 | AF9: =IF(AE9>0.285,((AE9/0.222)-1)*(1000/28.4), IF(AE9<0.159,(1-(0.222/AE9))*(1000/28.4),0)) -> 0 | AG9: =LMG/LK -> 0.0977443609 | AH9: =IF(AG9>0.215,((AG9/0.163)-1)*(1000/31.9), IF(AG9<0.111,(1-(0.163/AG9))*(1000/31.9),0)) -> -20.92838196 | AI9: =(LK*100)/LMN -> 22.16666667 | AJ9: =IF(AI9>7.809,((AI9/4.615)-1)*(1000/69.2), IF(AI9<1.421,(1-(4.615/AI9))*(1000/69.2),0)) -> 54.95922027 | AK9: =LFE/(LK*100) -> 0.3308270677 | AL9: =IF(AK9>0.67,((AK9/0.55)-1)*(1000/21.8), IF(AK9<0.43,(1-(0.55/AK9))*(1000/21.8),0)) -> -30.38990826 | AM9: =LZN/(LK*100) -> 0.1353383459 | AN9: =IF(AM9>0.2,((AM9/0.157)-1)*(1000/27.4), IF(AM9<0.114,(1-(0.157/AM9))*(1000/27.4),0)) -> 0 | AO9: =LCU/(LK*10) -> 0.3458646617 | AP9: =IF(AO9>0.453,((AO9/0.33)-1)*(1000/37.3), IF(AO9<0.207,(1-(0.33/AO9))*(1000/37.3),0)) -> 0 | AQ9: =LCA/LMG -> 2.307692308 | AR9: =IF(AQ9>1.754,((AQ9/1.373)-1)*(1000/27.7), IF(AQ9<0.992,(1-(1.373/AQ9))*(1000/27.7),0)) -> 24.5764054 | AS9: =(LCA*100)/LMN -> 5 | AT9: =IF(AS9>2.591,((AS9/1.502)-1)*(1000/72.5), IF(AS9<0.413,(1-(1.502/AS9))*(1000/72.5),0)) -> 32.12268699 | AU9: =LFE/(LCA*100) -> 1.466666667 | AV9: =IF(AU9>3.048,((AU9/2.414)-1)*(1000/26.3), IF(AU9<1.78,(1-(2.414/AU9))*(1000/26.3),0)) -> -24.55928102 | AW9: =(LCA*100)/LZN -> 1.666666667 | AX9: =IF(AW9>1.871,((AW9/1.473)-1)*(1000/27), IF(AW9<1.075,(1-(1.473/AW9))*(1000/27),0)) -> 0 | AY9: =(LCA*10)/LCU -> 0.652173913 | AZ9: =IF(AY9>1.067,((AY9/0.743)-1)*(1000/43.6), IF(AY9<0.419,(1-(0.743/AY9))*(1000/43.6),0)) -> 0 | BA9: =(LMG*100)/LMN -> 2.166666667 | BB9: =IF(BA9>1.998,((BA9/1.129)-1)*(1000/77), IF(BA9<0.26,(1-(1.129/BA9))*(1000/77),0)) -> 11.93639546 | BC9: =(LMG*100)/LFE -> 0.2954545455 | BD9: =IF(BC9>0.421,((BC9/0.329)-1)*(1000/28), IF(BC9<0.237,(1-(0.329/BC9))*(1000/28),0)) -> 0 | BE9: =(LMG*100)/LZN -> 0.7222222222 | BF9: =IF(BE9>1.418,((BE9/1.1)-1)*(1000/28.9), IF(BE9<0.782,(1-(1.1/BE9))*(1000/28.9),0)) -> -18.09954751 | BG9: =(LMG*10)/LCU -> 0.2826086957 | BH9: =IF(BG9>0.78,((BG9/0.552)-1)*(1000/41.3), IF(BG9<0.324,(1-(0.552/BG9))*(1000/41.3),0)) -> -23.08064817 | BI9: =LFE/LMN -> 7.333333333 | BJ9: =IF(BI9>5.493,((BI9/3.302)-1)*(1000/66.3), IF(BI9<1.111,(1-(3.302/BI9))*(1000/66.3),0)) -> 18.41442288 | BK9: =LZN/LMN -> 3 | BL9: =IF(BK9>1.756,((BK9/1.008)-1)*(1000/74.2), IF(BK9<0.26,(1-(1.008/BK9))*(1000/74.2),0)) -> 26.63329483 | BM9: =LMN/(LCU*10) -> 0.1304347826 | BN9: =IF(BM9>1.95,((BM9/0.998)-1)*(1000/95.4), IF(BM9<0.046,(1-(0.998/BM9))*(1000/95.4),0)) -> 0 | BO9: =LZN/LFE -> 0.4090909091 | BP9: =IF(BO9>0.392,((BO9/0.312)-1)*(1000/25.6), IF(BO9<0.232,(1-(0.312/BO9))*(1000/25.6),0)) -> 12.15581294 | BQ9: =LFE/(LCU*10) -> 0.9565217391 | BR9: =IF(BQ9>2.426,((BQ9/1.733)-1)*(1000/40), IF(BQ9<1.04,(1-(1.733/BQ9))*(1000/40),0)) -> -20.29431818 | BS9: =LZN/(LCU*10) -> 0.3913043478 | BT9: =IF(BS9>0.723,((BS9/0.522)-1)*(1000/38.5), IF(BS9<0.321,(1-(0.522/BS9))*(1000/38.5),0)) -> 0 | BU9: =(B9+D9-F9-H9+J9-L9-N9+P9)/8 -> 31.6594819 | BV9: =(X9+AD9-B9-R9-T9-V9-Z9-AB9)/8 -> 7.057633145 | BW9: =(R9+AJ9-D9-AF9-AH9-AL9-AN9-AP9)/8 -> 11.26683935 | BX9: =(F9+T9+AF9+AR9+AT9-AV9+AX9+AZ9)/8 -> 8.396683469 | BY9: =(H9-AR9+V9+AH9+BB9+BD9+BF9+BH9)/8 -> -18.38583488 | BZ9: =(L9+Z9+AL9+AV9-BD9+BJ9-BP9+BR9)/8 -> -19.76949179 | CA9: =(BN9-J9-X9-AJ9-AT9-BB9-BJ9-BL9)/8 -> -29.47964438 | CB9: =(N9+AB9+AN9-AX9-BF9+BP9+BL9+BT9)/8 -> 3.832462381 | CC9: =(AP9-P9-AD9-AZ9-BH9-BR9-BN9-BT9)/8 -> 5.421870793 | CD9: =ABS(BU9)+ABS(BV9)+ABS(BW9)+ABS(BX9)+ABS(BY9)+ABS(BZ9)+ABS(CA9)+ABS(CB9)+ABS(CC9) -> 135.2699421
A10: 10.12448133 | B10: =IF(A10>9.905,((A10/8.706)-1)*(1000/13.8), IF(A10<7.507,(1-(8.706/A10))*(1000/13.8),0)) -> 11.80662784 | C10: 1.584415584 | D10: =IF(C10>1.783,((C10/1.526)-1)*(1000/16.8), IF(C10<1.269,(1-(1.526/C10))*(1000/16.8),0)) -> 0 | E10: 0.1721311475 | F10: =IF(E10>0.183,((E10/0.151)-1)*(1000/21.2), IF(E10<0.119,(1-(0.151/E10))*(1000/21.2),0)) -> 0 | G10: 0.06967213115 | H10: =IF(G10>0.141,((G10/0.113)-1)*(1000/24.8), IF(G10<0.085,(1-(0.113/G10))*(1000/24.8),0)) -> -25.07590133 | I10: 24.4 | J10: =IF(I10>15.524,((I10/9.401)-1)*(1000/65.1), IF(I10<3.728,(1-(9.401/I10))*(1000/65.1),0)) -> 24.5079657 | K10: 0.2336065574 | L10: =IF(K10>0.408,((K10/0.351)-1)*(1000/16.2), IF(K10<0.294,(1-(0.351/K10))*(1000/16.2),0)) -> -31.02014295 | M10: 0.08196721311 | N10: =IF(M10>0.127,((M10/0.106)-1)*(1000/19.8), IF(M10<0.085,(1-(0.106/M10))*(1000/19.8),0)) -> -14.80808081 | O10: 4.13559322 | P10: =IF(O10>6.883,((O10/4.998)-1)*(1000/37.7), IF(O10<3.113,(1-(4.998/O10))*(1000/37.7),0)) -> 0 | Q10: 6.390041494 | R10: =IF(Q10>6.671,((Q10/5.633)-1)*(1000/18.4), IF(Q10<4.595,(1-(5.633/Q10))*(1000/18.4),0)) -> 0 | S10: 1.742738589 | T10: =IF(S10>1.663,((S10/1.314)-1)*(1000/26.6), IF(S10<0.965,(1-(1.314/S10))*(1000/26.6),0)) -> 12.26635622 | U10: 0.7053941909 | V10: =IF(U10>1.268,((U10/0.984)-1)*(1000/28.9), IF(U10<0.7,(1-(0.984/U10))*(1000/28.9),0)) -> 0 | W10: 2.41 | X10: =IF(W10>1.772,((W10/1.086)-1)*(1000/63.2), IF(W10<0.4,(1-(1.086/W10))*(1000/63.2),0)) -> 19.29039327 | Y10: 2.365145228 | Z10: =IF(Y10>3.595,((Y10/2.995)-1)*(1000/20), IF(Y10<2.395,(1-(2.995/Y10))*(1000/20),0)) -> -13.31535088 | AA10: 0.8298755187 | AB10: =IF(AA10>1.124,((AA10/0.908)-1)*(1000/23.8), IF(AA10<0.692,(1-(0.908/AA10))*(1000/23.8),0)) -> 0 | AC10: 0.4084745763 | AD10: =IF(AC10>0.827,((AC10/0.588)-1)*(1000/40.6), IF(AC10<0.349,(1-(0.588/AC10))*(1000/40.6),0)) -> 0 | AE10: 0.2727272727 | AF10: =IF(AE10>0.285,((AE10/0.222)-1)*(1000/28.4), IF(AE10<0.159,(1-(0.222/AE10))*(1000/28.4),0)) -> 0 | AG10: 0.1103896104 | AH10: =IF(AG10>0.215,((AG10/0.163)-1)*(1000/31.9), IF(AG10<0.111,(1-(0.163/AG10))*(1000/31.9),0)) -> -14.94007007 | AI10: 15.4 | AJ10: =IF(AI10>7.809,((AI10/4.615)-1)*(1000/69.2), IF(AI10<1.421,(1-(4.615/AI10))*(1000/69.2),0)) -> 33.77087782 | AK10: 0.3701298701 | AL10: =IF(AK10>0.67,((AK10/0.55)-1)*(1000/21.8), IF(AK10<0.43,(1-(0.55/AK10))*(1000/21.8),0)) -> -22.29196845 | AM10: 0.1298701299 | AN10: =IF(AM10>0.2,((AM10/0.157)-1)*(1000/27.4), IF(AM10<0.114,(1-(0.157/AM10))*(1000/27.4),0)) -> 0 | AO10: 0.3831168831 | AP10: =IF(AO10>0.453,((AO10/0.33)-1)*(1000/37.3), IF(AO10<0.207,(1-(0.33/AO10))*(1000/37.3),0)) -> 0 | AQ10: 2.470588235 | AR10: =IF(AQ10>1.754,((AQ10/1.373)-1)*(1000/27.7), IF(AQ10<0.992,(1-(1.373/AQ10))*(1000/27.7),0)) -> 28.85952223 | AS10: 4.2 | AT10: =IF(AS10>2.591,((AS10/1.502)-1)*(1000/72.5), IF(AS10<0.413,(1-(1.502/AS10))*(1000/72.5),0)) -> 24.77616052 | AU10: 1.357142857 | AV10: =IF(AU10>3.048,((AU10/2.414)-1)*(1000/26.3), IF(AU10<1.78,(1-(2.414/AU10))*(1000/26.3),0)) -> -29.60976586 | AW10: 2.1 | AX10: =IF(AW10>1.871,((AW10/1.473)-1)*(1000/27), IF(AW10<1.075,(1-(1.473/AW10))*(1000/27),0)) -> 15.76525609 | AY10: 0.7118644068 | AZ10: =IF(AY10>1.067,((AY10/0.743)-1)*(1000/43.6), IF(AY10<0.419,(1-(0.743/AY10))*(1000/43.6),0)) -> 0 | BA10: 1.7 | BB10: =IF(BA10>1.998,((BA10/1.129)-1)*(1000/77), IF(BA10<0.26,(1-(1.129/BA10))*(1000/77),0)) -> 0 | BC10: 0.298245614 | BD10: =IF(BC10>0.421,((BC10/0.329)-1)*(1000/28), IF(BC10<0.237,(1-(0.329/BC10))*(1000/28),0)) -> 0 | BE10: 0.85 | BF10: =IF(BE10>1.418,((BE10/1.1)-1)*(1000/28.9), IF(BE10<0.782,(1-(1.1/BE10))*(1000/28.9),0)) -> 0 | BG10: 0.2881355932 | BH10: =IF(BG10>0.78,((BG10/0.552)-1)*(1000/41.3), IF(BG10<0.324,(1-(0.552/BG10))*(1000/41.3),0)) -> -22.17347956 | BI10: 5.7 | BJ10: =IF(BI10>5.493,((BI10/3.302)-1)*(1000/66.3), IF(BI10<1.111,(1-(3.302/BI10))*(1000/66.3),0)) -> 10.95364298 | BK10: 2 | BL10: =IF(BK10>1.756,((BK10/1.008)-1)*(1000/74.2), IF(BK10<0.26,(1-(1.008/BK10))*(1000/74.2),0)) -> 13.2631669 | BM10: 0.1694915254 | BN10: =IF(BM10>1.95,((BM10/0.998)-1)*(1000/95.4), IF(BM10<0.046,(1-(0.998/BM10))*(1000/95.4),0)) -> 0 | BO10: 0.350877193 | BP10: =IF(BO10>0.392,((BO10/0.312)-1)*(1000/25.6), IF(BO10<0.232,(1-(0.312/BO10))*(1000/25.6),0)) -> 0 | BQ10: 0.9661016949 | BR10: =IF(BQ10>2.426,((BQ10/1.733)-1)*(1000/40), IF(BQ10<1.04,(1-(1.733/BQ10))*(1000/40),0)) -> -19.84517544 | BS10: 0.3389830508 | BT10: =IF(BS10>0.723,((BS10/0.522)-1)*(1000/38.5), IF(BS10<0.321,(1-(0.522/BS10))*(1000/38.5),0)) -> 0 | BU10: =(B10+D10-F10-H10+J10-L10-N10+P10)/8 -> 13.40233983 | BV10: =(X10+AD10-B10-R10-T10-V10-Z10-AB10)/8 -> 1.06659501 | BW10: =(R10+AJ10-D10-AF10-AH10-AL10-AN10-AP10)/8 -> 8.875364544 | BX10: =(F10+T10+AF10+AR10+AT10-AV10+AX10+AZ10)/8 -> 13.90963262 | BY10: =(H10-AR10+V10+AH10+BB10+BD10+BF10+BH10)/8 -> -11.38112165 | BZ10: =(L10+Z10+AL10+AV10-BD10+BJ10-BP10+BR10)/8 -> -13.14109508 | CA10: =(BN10-J10-X10-AJ10-AT10-BB10-BJ10-BL10)/8 -> -15.8202759 | CB10: =(N10+AB10+AN10-AX10-BF10+BP10+BL10+BT10)/8 -> -2.16377125 | CC10: =(AP10-P10-AD10-AZ10-BH10-BR10-BN10-BT10)/8 -> 5.252331875 | CD10: =ABS(BU10)+ABS(BV10)+ABS(BW10)+ABS(BX10)+ABS(BY10)+ABS(BZ10)+ABS(CA10)+ABS(CB10)+ABS(CC10) -> 85.01252775
A11: 9.55017301 | B11: 0 | C11: 1.550561798 | D11: 0 | E11: 0.134057971 | F11: 0 | G11: 0.07608695652 | H11: -19.56221198 | I11: 17.25 | J11: 12.82505652 | K11: 0.2173913043 | L11: -37.9382716 | M11: 0.07608695652 | N11: -19.85569986 | O11: 3.780821918 | P11: 0 | Q11: 6.15916955 | R11: 0 | S11: 1.280276817 | T11: 0 | U11: 0.7266435986 | V11: 0 | W11: 1.80625 | X11: 10.49388652 | Y11: 2.076124567 | Z11: -22.12958333 | AA11: 0.7266435986 | AB11: 0 | AC11: 0.395890411 | AD11: 0 | AE11: 0.2078651685 | AF11: 0 | AG11: 0.1179775281 | AH11: 0 | AI11: 11.125 | AJ11: 20.3846467 | AK11: 0.3370786517 | AL11: -28.97553517 | AM11: 0.1179775281 | AN11: 0 | AO11: 0.4101123596 | AP11: 0 | AQ11: 1.761904762 | AR11: 10.22569782 | AS11: 2.3125 | AT11: 0 | AU11: 1.621621622 | AV11: -18.5792142 | AW11: 1.761904762 | AX11: 0 | AY11: 0.5068493151 | AZ11: 0 | BA11: 1.3125 | BB11: 0 | BC11: 0.35 | BD11: 0 | BE11: 1 | BF11: 0 | BG11: 0.2876712329 | BH11: -22.24835697 | BI11: 3.75 | BJ11: 0 | BK11: 1.3125 | BL11: 0 | BM11: 0.2191780822 | BN11: 0 | BO11: 0.35 | BP11: 0 | BQ11: 0.8219178082 | BR11: -27.71208333 | BS11: 0.2876712329 | BT11: -21.15769944 | BU11: 11.272655 | BV11: 4.077933732 | BW11: 6.170022733 | BX11: 3.600614001 | BY11: -6.504533346 | BZ11: -16.91683595 | CA11: -5.462948717 | CB11: -5.126674912 | CC11: 8.889767468 | CD11: 68.02198586
A12: 11.65178571 | B12: 24.51903663 | C12: 1.63125 | D12: 0 | E12: 0.1379310345 | F12: 0 | G12: 0.06896551724 | H12: -25.74596774 | I12: 26.1 | J12: 27.28572033 | K12: 0.245210728 | L12: -26.63097994 | M12: 0.08045977011 | N12: -16.03174603 | O12: 3.434210526 | P12: 0 | Q12: 7.142857143 | R12: 14.56727382 | S12: 1.607142857 | T12: 0 | U12: 0.8035714286 | V12: 0 | W12: 2.24 | X12: 16.81353008 | Y12: 2.857142857 | Z12: 0 | AA12: 0.9375 | AB12: 0 | AC12: 0.2947368421 | AD12: -24.50738916 | AE12: 0.225 | AF12: 0 | AG12: 0.1125 | AH12: 0 | AI12: 16 | AJ12: 35.6496471 | AK12: 0.4 | AL12: -17.20183486 | AM12: 0.13125 | AN12: 0 | AO12: 0.475 | AP12: 11.77999838 | AQ12: 2 | AR12: 16.48607361 | AS12: 3.6 | AT12: 19.26626567 | AU12: 1.777777778 | AV12: -13.60741445 | AW12: 1.714285714 | AX12: 0 | AY12: 0.4736842105 | AZ12: 0 | BA12: 1.8 | BB12: 0 | BC12: 0.28125 | BD12: 0 | BE12: 0.8571428571 | BF12: 0 | BG12: 0.2368421053 | BH12: -32.21953188 | BI12: 6.4 | BJ12: 14.15112008 | BK12: 2.1 | BL12: 14.60017969 | BM12: 0.1315789474 | BN12: 0 | BO12: 0.328125 | BP12: 0 | BQ12: 0.8421052632 | BR12: -26.4484375 | BS12: 0.2763157895 | BT12: -23.09461967 | BU12: 15.02668133 | BV12: -5.847521191 | BW12: 6.954844676 | BX12: 6.169969215 | BY12: -9.306446654 | BZ12: -8.717193334 | CA12: -15.97080787 | CB12: -3.06577325 | CC12: 14.75624707 | CD12: 85.8154846
A13: 10.35335689 | B13: 13.71165722 | C13: 1.723529412 | D13: 0 | E13: 0.1501706485 | F13: 0 | G13: 0.04778156997 | H13: -55.0374424 | I13: 12.73913043 | J13: 0 | K13: 0.228668942 | L13: -33.02284872 | M13: 0.07167235495 | N13: -24.18951419 | O13: 4.725806452 | P13: 0 | Q13: 6.007067138 | R13: 0 | S13: 1.554770318 | T13: 0 | U13: 0.4946996466 | V13: -34.22441918 | W13: 1.230434783 | X13: 0 | Y13: 2.367491166 | Z13: -13.25261194 | AA13: 0.74204947 | AB13: 0 | AC13: 0.4564516129 | AD13: 0 | AE13: 0.2588235294 | AF13: 0 | AG13: 0.08235294118 | AH13: -30.69861173 | AI13: 7.391304348 | AJ13: 0 | AK13: 0.3941176471 | AL13: -18.14322881 | AM13: 0.1235294118 | AN13: 0 | AO13: 0.3647058824 | AP13: 0 | AQ13: 3.142857143 | AR13: 46.5358774 | AS13: 1.913043478 | AT13: 0 | AU13: 1.522727273 | AV13: -22.25526361 | AW13: 2.095238095 | AX13: 15.645523 | AY13: 0.7096774194 | AZ13: 0 | BA13: 0.6086956522 | BB13: 0 | BC13: 0.2089552239 | BD13: -20.51785714 | BE13: 0.6666666667 | BF13: -22.49134948 | BG13: 0.2258064516 | BH13: -34.97751643 | BI13: 2.913043478 | BJ13: 0 | BK13: 0.9130434783 | BL13: 0 | BM13: 0.3709677419 | BN13: 0 | BO13: 0.3134328358 | BP13: 0 | BQ13: 1.080645161 | BR13: 0 | BS13: 0.3387096774 | BT13: 0 | BU13: 15.74518282 | BV13: 4.220671738 | BW13: 6.105230068 | BX13: 10.554583 | BY13: -30.56038422 | BZ13: -8.269511992 | CA13: 0 | CB13: -2.167960964 | CC13: 4.372189554 | CD13: 81.99571435
A14: 8.615384615 | B14: 0 | C14: 1.6 | D14: 0 | E14: 0.1821428571 | F14: 0 | G14: 0.06071428571 | H14: -34.72485769 | I14: 3.58974359 | J14: -24.8671275 | K14: 0.225 | L14: -34.56790123 | M14: 0.075 | N14: -20.87542088 | O14: 5.090909091 | P14: 0 | Q14: 5.384615385 | R14: 0 | S14: 1.569230769 | T14: 0 | U14: 0.5230769231 | V14: -30.49053531 | W14: 0.4166666667 | X14: 0 | Y14: 1.938461538 | Z14: -27.25198413 | AA14: 0.6461538462 | AB14: -17.02681072 | AC14: 0.5909090909 | AD14: 0 | AE14: 0.2914285714 | AF14: 11.01201805 | AG14: 0.09714285714 | AH14: -21.2520745 | AI14: 2.243589744 | AJ14: 0 | AK14: 0.36 | AL14: -24.20998981 | AM14: 0.12 | AN14: 0 | AO14: 0.3142857143 | AP14: 0 | AQ14: 3 | AR14: 42.77965193 | AS14: 0.6538461538 | AT14: 0 | AU14: 1.235294118 | AV14: -36.2810067 | AW14: 2.428571429 | AX14: 24.02683937 | AY14: 0.9272727273 | AZ14: 0 | BA14: 0.2179487179 | BB14: -54.28724217 | BC14: 0.2698412698 | BD14: 0 | BE14: 0.8095238095 | BF14: 0 | BG14: 0.3090909091 | BH14: -19.0286284 | BI14: 0.8076923077 | BJ14: -46.57904187 | BK14: 0.2692307692 | BL14: 0 | BM14: 1.418181818 | BN14: 0 | BO14: 0.3333333333 | BP14: 0 | BQ14: 1.145454545 | BR14: 0 | BS14: 0.3818181818 | BT14: 0 | BU14: 8.162631537 | BV14: 9.346166271 | BW14: 4.306255781 | BX14: 14.26243951 | BY14: -25.32037375 | BZ14: -21.11124047 | CA14: 15.71667644 | CB14: -7.741133871 | CC14: 2.37857855 | CD14: 108.3454962
A15: 9.667896679 | B15: 0 | C15: 1.690322581 | D15: 0 | E15: 0.1755725191 | F15: 0 | G15: 0.07251908397 | H15: -22.50848896 | I15: 9.703703704 | J15: 0 | K15: 0.2213740458 | L15: -36.14516816 | M15: 0.07251908397 | N15: -23.31738437 | O15: 7.485714286 | P15: 13.20270435 | Q15: 5.719557196 | R15: 0 | S15: 1.697416974 | T15: 10.96968947 | U15: 0.7011070111 | V15: 0 | W15: 1.003703704 | X15: 0 | Y15: 2.140221402 | Z15: -19.96939655 | AA15: 0.7011070111 | AB15: 0 | AC15: 0.7742857143 | AD15: 0 | AE15: 0.2967741935 | AF15: 11.85988351 | AG15: 0.1225806452 | AH15: 0 | AI15: 5.740740741 | AJ15: 0 | AK15: 0.3741935484 | AL15: -21.55172414 | AM15: 0.1225806452 | AN15: 0 | AO15: 0.2258064516 | AP15: 0 | AQ15: 2.421052632 | AR15: 27.55705395 | AS15: 1.703703704 | AT15: 0 | AU15: 1.260869565 | AV15: -34.77382982 | AW15: 2.421052632 | AX15: 23.83778712 | AY15: 1.314285714 | AZ15: 17.63510546 | BA15: 0.7037037037 | BB15: 0 | BC15: 0.3275862069 | BD15: 0 | BE15: 1 | BF15: 0 | BG15: 0.5428571429 | BH15: 0 | BI15: 2.148148148 | BJ15: 0 | BK15: 0.7037037037 | BL15: 0 | BM15: 0.7714285714 | BN15: 0 | BO15: 0.3275862069 | BP15: 0 | BQ15: 1.657142857 | BR15: 0 | BS15: 0.5428571429 | BT15: 0 | BU15: 11.89671823 | BV15: 1.124963385 | BW15: 1.211480079 | BX15: 15.82916867 | BY15: -6.258192864 | BZ15: -14.05501483 | CA15: 0 | CB15: -5.894396436 | CC15: -3.854726226 | CD15: 60.12466072
A16: 10.83333333 | B16: 17.7067068 | C16: 1.625 | D16: 0 | E16: 0.2267206478 | F16: 23.65383224 | G16: 0.1052631579 | H16: 0 | I16: 24.7 | J16: 24.9981577 | K16: 0.3684210526 | L16: 0 | M16: 0.1174089069 | N16: 0 | O16: 2.684782609 | P16: -22.85419732 | Q16: 6.666666667 | R16: 0 | S16: 2.456140351 | T16: 32.6770222 | U16: 1.140350877 | V16: 0 | W16: 2.28 | X16: 17.39632142 | Y16: 3.99122807 | Z16: 16.63152037 | AA16: 1.271929825 | AB16: 16.8404946 | AC16: 0.247826087 | AD16: -33.80865958 | AE16: 0.3684210526 | AF16: 23.22374265 | AG16: 0.1710526316 | AH16: 0 | AI16: 15.2 | AJ16: 33.1446214 | AK16: 0.5986842105 | AL16: 0 | AM16: 0.1907894737 | AN16: 0 | AO16: 0.6052631579 | AP16: 22.36275554 | AQ16: 2.153846154 | AR16: 20.5312395 | AS16: 5.6 | AT16: 37.63258184 | AU16: 1.625 | AV16: -18.46153846 | AW16: 1.931034483 | AX16: 11.51679572 | AY16: 0.6086956522 | AZ16: 0 | BA16: 2.6 | BB16: 16.92107715 | BC16: 0.2857142857 | BD16: 0 | BE16: 0.8965517241 | BF16: 0 | BG16: 0.2826086957 | BH16: -23.08064817 | BI16: 9.1 | BJ16: 26.48424603 | BK16: 2.9 | BL16: 25.29628203 | BM16: 0.1086956522 | BN16: 0 | BO16: 0.3186813187 | BP16: 0 | BQ16: 0.9891304348 | BR16: -18.8010989 | BS16: 0.3152173913 | BT16: -17.03896104 | BU16: -0.4753956335 | BV16: -12.53351027 | BW16: -1.555234598 | BX16: 20.96209408 | BY16: -3.336351314 | BZ16: 0.7316411297 | CA16: -22.73416095 | CB16: 1.697627484 | CC16: 17.24329007 | CD16: 81.26930552
A17: 9.885057471 | B17: 0 | C17: 1.664516129 | D17: 0 | E17: 0.1782945736 | F17: 0 | G17: 0.08527131783 | H17: 0 | I17: 23.45454545 | J17: 22.96311821 | K17: 0.2596899225 | L17: -21.70444076 | M17: 0.08139534884 | N17: -15.26695527 | O17: 3.794117647 | P17: 0 | Q17: 5.938697318 | R17: 0 | S17: 1.762452107 | T17: 12.83036665 | U17: 0.8429118774 | V17: 0 | W17: 2.372727273 | X17: 18.7473377 | Y17: 2.567049808 | Z17: 0 | AA17: 0.8045977011 | AB17: 0 | AC17: 0.3838235294 | AD17: 0 | AE17: 0.2967741935 | AF17: 11.85988351 | AG17: 0.1419354839 | AH17: 0 | AI17: 14.09090909 | AJ17: 29.67174485 | AK17: 0.4322580645 | AL17: 0 | AM17: 0.135483871 | AN17: 0 | AO17: 0.4387096774 | AP17: 0 | AQ17: 2.090909091 | AR17: 18.87639891 | AS17: 4.181818182 | AT17: 24.60919401 | AU17: 1.456521739 | AV17: -24.99517621 | AW17: 2.19047619 | AX17: 18.04018482 | AY17: 0.6764705882 | AZ17: 0 | BA17: 2 | BB17: 10.0192102 | BC17: 0.328358209 | BD17: 0 | BE17: 1.047619048 | BF17: 0 | BG17: 0.3235294118 | BH17: -17.09883337 | BI17: 6.090909091 | BJ17: 12.73924707 | BK17: 1.909090909 | BL17: 12.04770073 | BM17: 0.1617647059 | BN17: 0 | BO17: 0.3134328358 | BP17: 0 | BQ17: 0.9852941176 | BR17: -18.97164179 | BS17: 0.3088235294 | BT17: -17.92949907 | BU17: 7.491814279 | BV17: 0.7396213817 | BW17: 2.226482667 | BX17: 13.90140051 | BY17: -3.24450276 | BZ17: -6.616501461 | CA17: -16.3496941 | CB17: -4.898617304 | CC17: 6.749996779 | CD17: 62.21863124
A18: 9.76284585 | B18: 0 | C18: 1.247474747 | D18: -13.28995566 | E18: 0.2105263158 | F18: 18.59500056 | G18: 0.06882591093 | H18: -25.87998102 | I18: 30.875 | J18: 35.08794289 | K18: 0.2995951417 | L18: 0 | M18: 0.08906882591 | N18: 0 | O18: 2.872093023 | P18: -19.63380191 | Q18: 7.826086957 | R18: 21.15915294 | S18: 2.055335968 | T18: 21.2098731 | U18: 0.6719367589 | V18: -16.07001832 | W18: 3.1625 | X18: 30.2541553 | Y18: 2.924901186 | Z18: 0 | AA18: 0.8695652174 | AB18: 0 | AC18: 0.2941860465 | AD18: -24.59938862 | AE18: 0.2626262626 | AF18: 0 | AG18: 0.08585858586 | AH18: -28.1652222 | AI18: 24.75 | AJ18: 63.04836578 | AK18: 0.3737373737 | AL18: -21.63401934 | AM18: 0.1111111111 | AN18: -15.0729927 | AO18: 0.4343434343 | AP18: 0 | AQ18: 3.058823529 | AR18: 44.326333 | AS18: 6.5 | AT18: 45.89742412 | AU18: 1.423076923 | AV18: -26.47621005 | AW18: 2.363636364 | AX18: 22.3941154 | AY18: 0.6046511628 | AZ18: 0 | BA18: 2.125 | BB18: 11.45709915 | BC18: 0.2297297297 | BD18: -15.43277311 | BE18: 0.7727272727 | BF18: -14.65499695 | BG18: 0.1976744186 | BH18: -43.4012249 | BI18: 9.25 | BJ18: 27.16941969 | BK18: 2.75 | BL18: 23.29076285 | BM18: 0.09302325581 | BN18: 0 | BO18: 0.2972972973 | BP18: 0 | BQ18: 0.8604651163 | BR18: -25.35067568 | BS18: 0.2558139535 | BT18: -27.02715466 | BU18: 1.181145724 | BV18: -2.580530129 | BW18: 20.29621358 | BX18: 22.36236953 | BY18: -22.05918129 | BZ18: -3.857339033 | CA18: -29.52564622 | CB18: -3.318562872 | CC18: 17.50153072 | CD18: 122.6825191
A19: 8.142857143 | B19: 0 | C19: 1.461538462 | D19: 0 | E19: 0.1228070175 | F19: 0 | G19: 0.1228070175 | H19: 0 | I19: 13.41176471 | J19: 0 | K19: 0.3245614035 | L19: 0 | M19: 0.08333333333 | N19: -13.73737374 | O19: 4.56 | P19: 0 | Q19: 5.571428571 | R19: 0 | S19: 1 | T19: 0 | U19: 1 | V19: 0 | W19: 1.647058824 | X19: 0 | Y19: 2.642857143 | Z19: 0 | AA19: 0.6785714286 | AB19: -14.20610349 | AC19: 0.56 | AD19: 0 | AE19: 0.1794871795 | AF19: 0 | AG19: 0.1794871795 | AH19: 0 | AI19: 9.176470588 | AJ19: 14.28325136 | AK19: 0.4743589744 | AL19: 0 | AM19: 0.1217948718 | AN19: 0 | AO19: 0.3205128205 | AP19: 0 | AQ19: 1 | AR19: 0 | AS19: 1.647058824 | AT19: 0 | AU19: 2.642857143 | AV19: 0 | AW19: 1.473684211 | AX19: 0 | AY19: 0.56 | AZ19: 0 | BA19: 1.647058824 | BB19: 0 | BC19: 0.3783783784 | BD19: 0 | BE19: 1.473684211 | BF19: 11.75477227 | BG19: 0.56 | BH19: 0 | BI19: 4.352941176 | BJ19: 0 | BK19: 1.117647059 | BL19: 0 | BM19: 0.34 | BN19: 0 | BO19: 0.2567567568 | BP19: 0 | BQ19: 1.48 | BR19: 0 | BS19: 0.38 | BT19: 0 | BU19: 1.717171717 | BV19: 1.775762937 | BW19: 1.78540642 | BX19: 0 | BY19: 1.469346534 | BZ19: 0 | CA19: -1.78540642 | CB19: -4.962281188 | CC19: 0 | CD19: 13.49537522
A20: 10.43478261 | B20: 14.38939836 | C20: 1.589403974 | D20: 0 | E20: 0.0875 | F20: -34.23180593 | G20: 0.0625 | H20: -32.58064516 | I20: 21.81818182 | J20: 20.2893437 | K20: 0.3375 | L20: 0 | M20: 0.06666666667 | N20: -29.7979798 | O20: 4 | P20: 0 | Q20: 6.565217391 | R20: 0 | S20: 0.9130434783 | T20: -16.50912997 | U20: 0.652173913 | V20: -17.60553633 | W20: 2.090909091 | X20: 14.64130783 | Y20: 3.52173913 | Z20: 0 | AA20: 0.6956521739 | AB20: 0 | AC20: 0.3833333333 | AD20: 0 | AE20: 0.1390728477 | AF20: -20.99597586 | AG20: 0.09933774834 | AH20: -20.08986416 | AI20: 13.72727273 | AJ20: 28.5330968 | AK20: 0.5364238411 | AL20: 0 | AM20: 0.1059602649 | AN20: -17.57983577 | AO20: 0.3973509934 | AP20: 0 | AQ20: 1.4 | AR20: 0 | AS20: 1.909090909 | AT20: 0 | AU20: 3.857142857 | AV20: 22.73088317 | AW20: 1.3125 | AX20: 0 | AY20: 0.35 | AZ20: -25.75360419 | BA20: 1.363636364 | BB20: 0 | BC20: 0.1851851852 | BD20: -27.73571429 | BE20: 0.9375 | BF20: 0 | BG20: 0.25 | BH20: -29.24939467 | BI20: 7.363636364 | BJ20: 18.5528418 | BK20: 1.454545455 | BL20: 0 | BM20: 0.1833333333 | BN20: 0 | BO20: 0.1975308642 | BP20: -22.63671875 | BQ20: 1.35 | BR20: 0 | BS20: 0.2666666667 | BT20: -24.87012987 | BU20: 16.41114662 | BV20: 4.295821971 | BW20: 10.89984657 | BX20: -15.02767489 | BY20: -15.90764433 | BZ20: 11.45701975 | CA20: -10.25207376 | CB20: -11.86058302 | CC20: 9.984141092 | CD20: 106.095952
A21: 7.36 | B21: -13.25220542 | C21: 1.333333333 | D21: 0 | E21: 0.1413043478 | F21: 0 | G21: 0.1413043478 | H21: 10.10003848 | I21: 14.15384615 | J21: 0 | K21: 0.402173913 | L21: 0 | M21: 0.07065217391 | N21: -25.26806527 | O21: 2.628571429 | P21: -23.9101603 | Q21: 5.52 | R21: 0 | S21: 1.04 | T21: 0 | U21: 1.04 | V21: 0 | W21: 1.923076923 | X21: 12.19602949 | Y21: 2.96 | Z21: 0 | AA21: 0.52 | AB21: -31.35100194 | AC21: 0.3571428571 | AD21: 0 | AE21: 0.1884057971 | AF21: 0 | AG21: 0.1884057971 | AH21: 0 | AI21: 10.61538462 | AJ21: 18.78889715 | AK21: 0.5362318841 | AL21: 0 | AM21: 0.09420289855 | AN21: -24.32902864 | AO21: 0.5072463768 | AP21: 14.39973814 | AQ21: 1 | AR21: 0 | AS21: 2 | AT21: 0 | AU21: 2.846153846 | AV21: 0 | AW21: 2 | AX21: 13.25086118 | AY21: 0.3714285714 | AZ21: -22.94460127 | BA21: 2 | BB21: 10.0192102 | BC21: 0.3513513514 | BD21: 0 | BE21: 2 | BF21: 28.31078956 | BG21: 0.3714285714 | BH21: 0 | BI21: 5.692307692 | BJ21: 10.91850587 | BK21: 1 | BL21: 0 | BM21: 0.1857142857 | BN21: 0 | BO21: 0.1756756757 | BP21: -30.3125 | BQ21: 1.057142857 | BR21: 0 | BS21: 0.1857142857 | BT21: -47.03296703 | BU21: -2.749292366 | BV21: 7.099904606 | BW21: 3.589773455 | BX21: -1.211717511 | BY21: 6.053754779 | BZ21: 5.153875733 | CA21: -6.490330337 | CB21: -24.9819017 | CC21: 13.53593334 | CD21: 70.86648383
A22: 8.153846154 | B22: 0 | C22: 1.57037037 | D22: 0 | E22: 0.1226415094 | F22: 0 | G22: 0.141509434 | H22: 10.1732208 | I22: 12.47058824 | J22: 0 | K22: 0.3490566038 | L22: 0 | M22: 0.07547169811 | N22: -20.42929293 | O22: 7.066666667 | P22: 10.97875047 | Q22: 5.192307692 | R22: 0 | S22: 1 | T22: 0 | U22: 1.153846154 | V22: 0 | W22: 1.529411765 | X22: 0 | Y22: 2.846153846 | Z22: 0 | AA22: 0.6153846154 | AB22: -19.9789916 | AC22: 0.8666666667 | AD22: 11.67297789 | AE22: 0.1925925926 | AF22: 0 | AG22: 0.2222222222 | AH22: 11.38954598 | AI22: 7.941176471 | AJ22: 10.41519696 | AK22: 0.5481481481 | AL22: 0 | AM22: 0.1185185185 | AN22: 0 | AO22: 0.2222222222 | AP22: 0 | AQ22: 0.8666666667 | AR22: -21.09136351 | AS22: 1.529411765 | AT22: 0 | AU22: 2.846153846 | AV22: 0 | AW22: 1.625 | AX22: 0 | AY22: 0.8666666667 | AZ22: 0 | BA22: 1.764705882 | BB22: 0 | BC22: 0.4054054054 | BD22: 0 | BE22: 1.875 | BF22: 24.37873545 | BG22: 1 | BH22: 19.65119135 | BI22: 4.352941176 | BJ22: 0 | BK22: 0.9411764706 | BL22: 0 | BM22: 0.5666666667 | BN22: 0 | BO22: 0.2162162162 | BP22: -17.3046875 | BQ22: 2.466666667 | BR22: 10.58376611 | BS22: 0.5333333333 | BT22: 0 | BU22: 2.654352826 | BV22: 3.956496186 | BW22: -0.1217936273 | BX22: -2.636420439 | BY22: 10.83550714 | BZ22: 3.486056701 | CA22: -1.30189962 | CB22: -10.26146343 | CC22: -6.610835729 | CD22: 41.8648257
A23: 8.32 | B23: 0 | C23: 1.260606061 | D23: -12.53147894 | E23: 0.1298076923 | F23: 0 | G23: 0.1394230769 | H23: 0 | I23: 4.727272727 | J23: 0 | K23: 0.3365384615 | L23: 0 | M23: 0.07692307692 | N23: -19.09090909 | O23: 2.971428571 | P23: -18.09069578 | Q23: 6.6 | R23: 0 | S23: 1.08 | T23: 0 | U23: 1.16 | V23: 0 | W23: 0.5681818182 | X23: 0 | Y23: 2.8 | Z23: 0 | AA23: 0.64 | AB23: -17.59453782 | AC23: 0.3571428571 | AD23: 0 | AE23: 0.1636363636 | AF23: 0 | AG23: 0.1757575758 | AH23: 0 | AI23: 3.75 | AJ23: 0 | AK23: 0.4242424242 | AL23: -13.59764089 | AM23: 0.09696969697 | AN23: -22.5935219 | AO23: 0.4242424242 | AP23: 0 | AQ23: 0.9310344828 | AR23: -17.13731782 | AS23: 0.6136363636 | AT23: 0 | AU23: 2.592592593 | AV23: 0 | AW23: 1.6875 | AX23: 0 | AY23: 0.3857142857 | AZ23: -21.2453279 | BA23: 0.6590909091 | BB23: 0 | BC23: 0.4142857143 | BD23: 0 | BE23: 1.8125 | BF23: 22.4127084 | BG23: 0.4142857143 | BH23: 0 | BI23: 1.590909091 | BJ23: 0 | BK23: 0.3636363636 | BL23: 0 | BM23: 0.6285714286 | BN23: 0 | BO23: 0.2285714286 | BP23: -14.2578125 | BQ23: 1 | BR23: -18.325 | BS23: 0.2285714286 | BT23: -33.34415584 | BU23: -1.441408203 | BV23: 2.199317227 | BW23: 6.090330216 | BX23: -4.797830715 | BY23: 4.943753278 | BZ23: -2.208103549 | CA23: 0 | CB23: -16.16170569 | CC23: 11.37564744 | CD23: 49.21809632
A24: 6.129032258 | B24: -30.467582 | C24: 1.165644172 | D24: -18.40162907 | E24: 0.1157894737 | F24: -14.34391081 | G24: 0.09473684211 | H24: 0 | I24: 7.916666667 | J24: 0 | K24: 0.3684210526 | L24: 0 | M24: 0.09473684211 | N24: 0 | O24: 3.166666667 | P24: 0 | Q24: 5.258064516 | R24: 0 | S24: 0.7096774194 | T24: -32.01298701 | U24: 0.5806451613 | V24: -24.03690888 | W24: 1.291666667 | X24: 0 | Y24: 2.258064516 | Z24: -16.31785714 | AA24: 0.5806451613 | AB24: -23.68814192 | AC24: 0.5166666667 | AD24: 0 | AE24: 0.1349693252 | AF24: -22.70486556 | AG24: 0.1104294479 | AH24: -14.92337165 | AI24: 6.791666667 | AJ24: 0 | AK24: 0.4294478528 | AL24: -12.8768021 | AM24: 0.1104294479 | AN24: -15.39132198 | AO24: 0.3680981595 | AP24: 0 | AQ24: 1.222222222 | AR24: 0 | AS24: 0.9166666667 | AT24: 0 | AU24: 3.181818182 | AV24: 12.09387228 | AW24: 1.222222222 | AX24: 0 | AY24: 0.3666666667 | AZ24: -23.54045038 | BA24: 0.75 | BB24: 0 | BC24: 0.2571428571 | BD24: 0 | BE24: 1 | BF24: 0 | BG24: 0.3 | BH24: -20.33898305 | BI24: 2.916666667 | BJ24: 0 | BK24: 0.75 | BL24: 0 | BM24: 0.4 | BN24: 0 | BO24: 0.2571428571 | BP24: 0 | BQ24: 1.166666667 | BR24: 0 | BS24: 0.3 | BT24: -19.22077922 | BU24: -4.315662533 | BV24: 15.81543462 | BW24: 10.53724879 | BX24: -13.08701075 | BY24: -7.412407947 | BZ24: -2.137598371 | CA24: 0 | CB24: -7.28753039 | CC24: 7.887526581 | CD24: 68.48041999
A25: 8.636363636 | B25: 0 | C25: 1.583333333 | D25: 0 | E25: 0.1263157895 | F25: 0 | G25: 0.1473684211 | H25: 12.26392416 | I25: 4.130434783 | J25: 0 | K25: 0.3526315789 | L25: 0 | M25: 0.08947368421 | N25: 0 | O25: 2.714285714 | P25: -22.31746475 | Q25: 5.454545455 | R25: 0 | S25: 1.090909091 | T25: 0 | U25: 1.272727273 | V25: 10.15301125 | W25: 0.4782608696 | X25: 0 | Y25: 3.045454545 | Z25: 0 | AA25: 0.7727272727 | AB25: 0 | AC25: 0.3142857143 | AD25: -21.45096283 | AE25: 0.2 | AF25: 0 | AG25: 0.2333333333 | AH25: 13.5264214 | AI25: 2.608695652 | AJ25: 0 | AK25: 0.5583333333 | AL25: 0 | AM25: 0.1416666667 | AN25: 0 | AO25: 0.5833333333 | AP25: 20.58114659 | AQ25: 0.8571428571 | AR25: -21.72683514 | AS25: 0.5217391304 | AT25: 0 | AU25: 2.791666667 | AV25: 0 | AW25: 1.411764706 | AX25: 0 | AY25: 0.3428571429 | AZ25: -26.76796636 | BA25: 0.6086956522 | BB25: 0 | BC25: 0.4179104478 | BD25: 0 | BE25: 1.647058824 | BF25: 17.20851914 | BG25: 0.4 | BH25: 0 | BI25: 1.456521739 | BJ25: 0 | BK25: 0.3695652174 | BL25: 0 | BM25: 0.6571428571 | BN25: 0 | BO25: 0.2537313433 | BP25: 0 | BQ25: 0.9571428571 | BR25: -20.26492537 | BS25: 0.2428571429 | BT25: -29.85485103 | BU25: -4.322673613 | BV25: -3.95049676 | BW25: -4.263445998 | BX25: -6.061850187 | BY25: 9.359838885 | BZ25: -2.533115672 | CA25: 0 | CB25: -5.882921272 | CC25: 17.65466462 | CD25: 54.029007
A26: 6.066666667 | B26: -31.52572066 | C26: 1.529411765 | D26: 0 | E26: 0.1098901099 | F26: -17.64622642 | G26: 0.1428571429 | H26: 10.65413319 | I26: 7.28 | J26: 0 | K26: 0.3791208791 | L26: 0 | M26: 0.07692307692 | N26: -19.09090909 | O26: 3.033333333 | P26: -17.18016731 | Q26: 3.966666667 | R26: -22.830654 | S26: 0.6666666667 | T26: -36.5037594 | U26: 0.8666666667 | V26: 0 | W26: 1.2 | X26: 0 | Y26: 2.3 | Z26: -15.10869565 | AA26: 0.4666666667 | AB26: -39.73589436 | AC26: 0.5 | AD26: 0 | AE26: 0.1680672269 | AF26: 0 | AG26: 0.218487395 | AH26: 10.67126853 | AI26: 4.76 | AJ26: 0 | AK26: 0.5798319328 | AL26: 0 | AM26: 0.1176470588 | AN26: 0 | AO26: 0.5042016807 | AP26: 14.15238286 | AQ26: 0.7692307692 | AR26: -28.33574007 | AS26: 0.8 | AT26: 0 | AU26: 3.45 | AV26: 16.31799295 | AW26: 1.428571429 | AX26: 0 | AY26: 0.3333333333 | AZ26: -28.18807339 | BA26: 1.04 | BB26: 0 | BC26: 0.3768115942 | BD26: 0 | BE26: 1.857142857 | BF26: 23.81701344 | BG26: 0.4333333333 | BH26: 0 | BI26: 2.76 | BJ26: 0 | BK26: 0.56 | BL26: 0 | BM26: 0.4166666667 | BN26: 0 | BO26: 0.2028985507 | BP26: -21.00446429 | BQ26: 1.15 | BR26: 0 | BS26: 0.2333333333 | BT26: -32.13358071 | BU26: -2.827860707 | BV26: 18.21309051 | BW26: -5.956788174 | BX26: -15.87397403 | BY26: 9.184769403 | BZ26: 2.776720198 | CA26: 0 | CB26: -16.97273273 | CC26: 11.45677553 | CD26: 83.26271129

Sheet DRISIndices
A1: DRIS Indices
A2: SUGARCANE LEAF DRIS INDICES
A3: A DRIS index value of zero or near zero indicates the nutrient is in optimum balance with other nutrients.
A4: A negative DRIS index value indicates the nutrient is insufficient relative to other nutrient levels.
A5: A positive DRIS index value indicates the nutrient is excessive relative to other nutrients.
A6: DRIS index values less than -10 are colored red and DRIS index values greater than +10 are colored blue.
A7: SampleID | B7: N | C7: P | D7: K | E7: Ca | F7: Mg | G7: Fe | H7: Mn | I7: Zn | J7: Cu | K7: NBI
A9: =LeafConcentrationsEntry!A9 -> Fielda | B9: =DRISN -> 31.6594819 | C9: =DRISP -> 7.057633145 | D9: =DRISK -> 11.26683935 | E9: =DRISCA -> 8.396683469 | F9: =DRISMG -> -18.38583488 | G9: =DRISFE -> -19.76949179 | H9: =DRISMN -> -29.47964438 | I9: =DRISZN -> 3.832462381 | J9: =DRISCU -> 5.421870793 | K9: =DRISNBI -> 135.2699421
A10: =LeafConcentrationsEntry!A10 -> Fieldb | B10: 13.40233983 | C10: 1.06659501 | D10: 8.875364544 | E10: 13.90963262 | F10: -11.38112165 | G10: -13.14109508 | H10: -15.8202759 | I10: -2.16377125 | J10: 5.252331875 | K10: 85.01252775
A11: =LeafConcentrationsEntry!A11 -> Fieldc | B11: 11.272655 | C11: 4.077933732 | D11: 6.170022733 | E11: 3.600614001 | F11: -6.504533346 | G11: -16.91683595 | H11: -5.462948717 | I11: -5.126674912 | J11: 8.889767468 | K11: 68.02198586
A12: =LeafConcentrationsEntry!A12 -> Fieldd | B12: 15.02668133 | C12: -5.847521191 | D12: 6.954844676 | E12: 6.169969215 | F12: -9.306446654 | G12: -8.717193334 | H12: -15.97080787 | I12: -3.06577325 | J12: 14.75624707 | K12: 85.8154846
A13: =LeafConcentrationsEntry!A13 -> Fielde | B13: 15.74518282 | C13: 4.220671738 | D13: 6.105230068 | E13: 10.554583 | F13: -30.56038422 | G13: -8.269511992 | H13: 0 | I13: -2.167960964 | J13: 4.372189554 | K13: 81.99571435
A14: =LeafConcentrationsEntry!A14 -> Fieldf | B14: 8.162631537 | C14: 9.346166271 | D14: 4.306255781 | E14: 14.26243951 | F14: -25.32037375 | G14: -21.11124047 | H14: 15.71667644 | I14: -7.741133871 | J14: 2.37857855 | K14: 108.3454962
A15: =LeafConcentrationsEntry!A15 -> Fieldg | B15: 11.89671823 | C15: 1.124963385 | D15: 1.211480079 | E15: 15.82916867 | F15: -6.258192864 | G15: -14.05501483 | H15: 0 | I15: -5.894396436 | J15: -3.854726226 | K15: 60.12466072
A16: =LeafConcentrationsEntry!A16 -> Fieldh | B16: -0.4753956335 | C16: -12.53351027 | D16: -1.555234598 | E16: 20.96209408 | F16: -3.336351314 | G16: 0.7316411297 | H16: -22.73416095 | I16: 1.697627484 | J16: 17.24329007 | K16: 81.26930552
A17: =LeafConcentrationsEntry!A17 -> Fieldi | B17: 7.491814279 | C17: 0.7396213817 | D17: 2.226482667 | E17: 13.90140051 | F17: -3.24450276 | G17: -6.616501461 | H17: -16.3496941 | I17: -4.898617304 | J17: 6.749996779 | K17: 62.21863124
A18: =LeafConcentrationsEntry!A18 -> Fieldj | B18: 1.181145724 | C18: -2.580530129 | D18: 20.29621358 | E18: 22.36236953 | F18: -22.05918129 | G18: -3.857339033 | H18: -29.52564622 | I18: -3.318562872 | J18: 17.50153072 | K18: 122.6825191
A19: =LeafConcentrationsEntry!A19 -> Field1 | B19: 1.717171717 | C19: 1.775762937 | D19: 1.78540642 | E19: 0 | F19: 1.469346534 | G19: 0 | H19: -1.78540642 | I19: -4.962281188 | J19: 0 | K19: 13.49537522
A20: =LeafConcentrationsEntry!A20 -> Field2 | B20: 16.41114662 | C20: 4.295821971 | D20: 10.89984657 | E20: -15.02767489 | F20: -15.90764433 | G20: 11.45701975 | H20: -10.25207376 | I20: -11.86058302 | J20: 9.984141092 | K20: 106.095952
A21: =LeafConcentrationsEntry!A21 -> Field3 | B21: -2.749292366 | C21: 7.099904606 | D21: 3.589773455 | E21: -1.211717511 | F21: 6.053754779 | G21: 5.153875733 | H21: -6.490330337 | I21: -24.9819017 | J21: 13.53593334 | K21: 70.86648383
A22: =LeafConcentrationsEntry!A22 -> Field4 | B22: 2.654352826 | C22: 3.956496186 | D22: -0.1217936273 | E22: -2.636420439 | F22: 10.83550714 | G22: 3.486056701 | H22: -1.30189962 | I22: -10.26146343 | J22: -6.610835729 | K22: 41.8648257
A23: =LeafConcentrationsEntry!A23 -> Field5 | B23: -1.441408203 | C23: 2.199317227 | D23: 6.090330216 | E23: -4.797830715 | F23: 4.943753278 | G23: -2.208103549 | H23: 0 | I23: -16.16170569 | J23: 11.37564744 | K23: 49.21809632
A24: =LeafConcentrationsEntry!A24 -> Field6 | B24: -4.315662533 | C24: 15.81543462 | D24: 10.53724879 | E24: -13.08701075 | F24: -7.412407947 | G24: -2.137598371 | H24: 0 | I24: -7.28753039 | J24: 7.887526581 | K24: 68.48041999
A25: =LeafConcentrationsEntry!A25 -> Field7 | B25: -4.322673613 | C25: -3.95049676 | D25: -4.263445998 | E25: -6.061850187 | F25: 9.359838885 | G25: -2.533115672 | H25: 0 | I25: -5.882921272 | J25: 17.65466462 | K25: 54.029007
A26: =LeafConcentrationsEntry!A26 -> Field8 | B26: -2.827860707 | C26: 18.21309051 | D26: -5.956788174 | E26: -15.87397403 | F26: 9.184769403 | G26: 2.776720198 | H26: 0 | I26: -16.97273273 | J26: 11.45677553 | K26: 83.26271129

Sheet ConcentrationsPlusDRIS
A2: SUGARCANE LEAF DRIS INDICES AND NUTRIENT CONCENTRATIONS
A3: A DRIS index value of zero or near zero indicates the nutrient is in optimum balance with other nutrients.
A4: A negative DRIS index value indicates the nutrient is insufficient relative to other nutrient levels. A positive DRIS index value indicates the nutrient is excessive relative to other nutrients.
A5: DRIS index values less than -10 are colored red and DRIS index values greater than +10 are colored blue.
A6: Nutrient concentrations below the critical value are colored red and concentrations above the optimum range are colored blue.
A7: SampleID | B7: Leaf N | D7: Leaf P | F7: Leaf K | H7: Leaf Ca | J7: Leaf Mg | L7: Leaf Fe | N7: Leaf Mn | P7: Leaf Zn | R7: Leaf Cu | T7: NBI
B8: % | C8: DRIS | D8: % | E8: DRIS | F8: % | G8: DRIS | H8: % | I8: DRIS | J8: % | K8: DRIS | L8: mg/kg | M8: DRIS | N8: mg/kg | O8: DRIS | P8: mg/kg | Q8: DRIS | R8: mg/kg | S8: DRIS
A9: =LeafConcentrationsEntry!A9 -> Fielda | B9: =LN -> 2.58 | C9: =DRISN -> 31.6594819 | D9: =LP -> 0.217 | E9: =DRISP -> 7.057633145 | F9: =LK -> 1.33 | G9: =DRISK -> 11.26683935 | H9: =LCA -> 0.3 | I9: =DRISCA -> 8.396683469 | J9: =LMG -> 0.13 | K9: =DRISMG -> -18.38583488 | L9: =LFE -> 44 | M9: =DRISFE -> -19.76949179 | N9: =LMN -> 6 | O9: =DRISMN -> -29.47964438 | P9: =LZN -> 18 | Q9: =DRISZN -> 3.832462381 | R9: =LCU -> 4.6 | S9: =DRISCU -> 5.421870793 | T9: =DRISNBI -> 135.2699421
A10: =LeafConcentrationsEntry!A10 -> Fieldb | B10: 2.44 | C10: 13.40233983 | D10: 0.241 | E10: 1.06659501 | F10: 1.54 | G10: 8.875364544 | H10: 0.42 | I10: 13.90963262 | J10: 0.17 | K10: -11.38112165 | L10: 57 | M10: -13.14109508 | N10: 10 | O10: -15.8202759 | P10: 20 | Q10: -2.16377125 | R10: 5.9 | S10: 5.252331875 | T10: 85.01252775
A11: =LeafConcentrationsEntry!A11 -> Fieldc | B11: 2.76 | C11: 11.272655 | D11: 0.289 | E11: 4.077933732 | F11: 1.78 | G11: 6.170022733 | H11: 0.37 | I11: 3.600614001 | J11: 0.21 | K11: -6.504533346 | L11: 60 | M11: -16.91683595 | N11: 16 | O11: -5.462948717 | P11: 21 | Q11: -5.126674912 | R11: 7.3 | S11: 8.889767468 | T11: 68.02198586
A12: =LeafConcentrationsEntry!A12 -> Fieldd | B12: 2.61 | C12: 15.02668133 | D12: 0.224 | E12: -5.847521191 | F12: 1.6 | G12: 6.954844676 | H12: 0.36 | I12: 6.169969215 | J12: 0.18 | K12: -9.306446654 | L12: 64 | M12: -8.717193334 | N12: 10 | O12: -15.97080787 | P12: 21 | Q12: -3.06577325 | R12: 7.6 | S12: 14.75624707 | T12: 85.8154846
A13: =LeafConcentrationsEntry!A13 -> Fielde | B13: 2.93 | C13: 15.74518282 | D13: 0.283 | E13: 4.220671738 | F13: 1.7 | G13: 6.105230068 | H13: 0.44 | I13: 10.554583 | J13: 0.14 | K13: -30.56038422 | L13: 67 | M13: -8.269511992 | N13: 23 | O13: 0 | P13: 21 | Q13: -2.167960964 | R13: 6.2 | S13: 4.372189554 | T13: 81.99571435
A14: =LeafConcentrationsEntry!A14 -> Fieldf | B14: 2.8 | C14: 8.162631537 | D14: 0.325 | E14: 9.346166271 | F14: 1.75 | G14: 4.306255781 | H14: 0.51 | I14: 14.26243951 | J14: 0.17 | K14: -25.32037375 | L14: 63 | M14: -21.11124047 | N14: 78 | O14: 15.71667644 | P14: 21 | Q14: -7.741133871 | R14: 5.5 | S14: 2.37857855 | T14: 108.3454962
A15: =LeafConcentrationsEntry!A15 -> Fieldg | B15: 2.62 | C15: 11.89671823 | D15: 0.271 | E15: 1.124963385 | F15: 1.55 | G15: 1.211480079 | H15: 0.46 | I15: 15.82916867 | J15: 0.19 | K15: -6.258192864 | L15: 58 | M15: -14.05501483 | N15: 27 | O15: 0 | P15: 19 | Q15: -5.894396436 | R15: 3.5 | S15: -3.854726226 | T15: 60.12466072
A16: =LeafConcentrationsEntry!A16 -> Fieldh | B16: 2.47 | C16: -0.4753956335 | D16: 0.228 | E16: -12.53351027 | F16: 1.52 | G16: -1.555234598 | H16: 0.56 | I16: 20.96209408 | J16: 0.26 | K16: -3.336351314 | L16: 91 | M16: 0.7316411297 | N16: 10 | O16: -22.73416095 | P16: 29 | Q16: 1.697627484 | R16: 9.2 | S16: 17.24329007 | T16: 81.26930552
A17: =LeafConcentrationsEntry!A17 -> Fieldi | B17: 2.58 | C17: 7.491814279 | D17: 0.261 | E17: 0.7396213817 | F17: 1.55 | G17: 2.226482667 | H17: 0.46 | I17: 13.90140051 | J17: 0.22 | K17: -3.24450276 | L17: 67 | M17: -6.616501461 | N17: 11 | O17: -16.3496941 | P17: 21 | Q17: -4.898617304 | R17: 6.8 | S17: 6.749996779 | T17: 62.21863124
A18: =LeafConcentrationsEntry!A18 -> Fieldj | B18: 2.47 | C18: 1.181145724 | D18: 0.253 | E18: -2.580530129 | F18: 1.98 | G18: 20.29621358 | H18: 0.52 | I18: 22.36236953 | J18: 0.17 | K18: -22.05918129 | L18: 74 | M18: -3.857339033 | N18: 8 | O18: -29.52564622 | P18: 22 | Q18: -3.318562872 | R18: 8.6 | S18: 17.50153072 | T18: 122.6825191
A19: =LeafConcentrationsEntry!A19 -> Field1 | B19: 2.28 | C19: 1.717171717 | D19: 0.28 | E19: 1.775762937 | F19: 1.56 | G19: 1.78540642 | H19: 0.28 | I19: 0 | J19: 0.28 | K19: 1.469346534 | L19: 74 | M19: 0 | N19: 17 | O19: -1.78540642 | P19: 19 | Q19: -4.962281188 | R19: 5 | S19: 0 | T19: 13.49537522
A20: =LeafConcentrationsEntry!A20 -> Field2 | B20: 2.4 | C20: 16.41114662 | D20: 0.23 | E20: 4.295821971 | F20: 1.51 | G20: 10.89984657 | H20: 0.21 | I20: -15.02767489 | J20: 0.15 | K20: -15.90764433 | L20: 81 | M20: 11.45701975 | N20: 11 | O20: -10.25207376 | P20: 16 | Q20: -11.86058302 | R20: 6 | S20: 9.984141092 | T20: 106.095952
A21: =LeafConcentrationsEntry!A21 -> Field3 | B21: 1.84 | C21: -2.749292366 | D21: 0.25 | E21: 7.099904606 | F21: 1.38 | G21: 3.589773455 | H21: 0.26 | I21: -1.211717511 | J21: 0.26 | K21: 6.053754779 | L21: 74 | M21: 5.153875733 | N21: 13 | O21: -6.490330337 | P21: 13 | Q21: -24.9819017 | R21: 7 | S21: 13.53593334 | T21: 70.86648383
A22: =LeafConcentrationsEntry!A22 -> Field4 | B22: 2.12 | C22: 2.654352826 | D22: 0.26 | E22: 3.956496186 | F22: 1.35 | G22: -0.1217936273 | H22: 0.26 | I22: -2.636420439 | J22: 0.3 | K22: 10.83550714 | L22: 74 | M22: 3.486056701 | N22: 17 | O22: -1.30189962 | P22: 16 | Q22: -10.26146343 | R22: 3 | S22: -6.610835729 | T22: 41.8648257
A23: =LeafConcentrationsEntry!A23 -> Field5 | B23: 2.08 | C23: -1.441408203 | D23: 0.25 | E23: 2.199317227 | F23: 1.65 | G23: 6.090330216 | H23: 0.27 | I23: -4.797830715 | J23: 0.29 | K23: 4.943753278 | L23: 70 | M23: -2.208103549 | N23: 44 | O23: 0 | P23: 16 | Q23: -16.16170569 | R23: 7 | S23: 11.37564744 | T23: 49.21809632
A24: =LeafConcentrationsEntry!A24 -> Field6 | B24: 1.9 | C24: -4.315662533 | D24: 0.31 | E24: 15.81543462 | F24: 1.63 | G24: 10.53724879 | H24: 0.22 | I24: -13.08701075 | J24: 0.18 | K24: -7.412407947 | L24: 70 | M24: -2.137598371 | N24: 24 | O24: 0 | P24: 18 | Q24: -7.28753039 | R24: 6 | S24: 7.887526581 | T24: 68.48041999
A25: =LeafConcentrationsEntry!A25 -> Field7 | B25: 1.9 | C25: -4.322673613 | D25: 0.22 | E25: -3.95049676 | F25: 1.2 | G25: -4.263445998 | H25: 0.24 | I25: -6.061850187 | J25: 0.28 | K25: 9.359838885 | L25: 67 | M25: -2.533115672 | N25: 46 | O25: 0 | P25: 17 | Q25: -5.882921272 | R25: 7 | S25: 17.65466462 | T25: 54.029007
A26: =LeafConcentrationsEntry!A26 -> Field8 | B26: 1.82 | C26: -2.827860707 | D26: 0.3 | E26: 18.21309051 | F26: 1.19 | G26: -5.956788174 | H26: 0.2 | I26: -15.87397403 | J26: 0.26 | K26: 9.184769403 | L26: 69 | M26: 2.776720198 | N26: 25 | O26: 0 | P26: 14 | Q26: -16.97273273 | R26: 6 | S26: 11.45677553 | T26: 83.26271129

Sheet CriticalValues
A1: Sugarcane leaf nutrient critical values and optimum ranges.
A3: Nutrient | C3: Critical Value | E3: Optimum Range
C4: -----------------------------%----------------------------
A5: Nitrogen (N) | C5: 1.8 | E5: 2.00-2.60
A6: Phosphorus (P) | C6: 0.19 | E6: 0.22-0.30
A7: Potassium (K) | C7: 0.9 | E7: 1.00-1.60
A8: Calcium (Ca) | C8: 0.2 | E8: 0.20-0.45
A9: Magnesium (Mg) | C9: 0.12 | E9: 0.15-0.32
A10: Sulfur (S) | C10: 0.13 | E10: 0.13-0.18
A11: Silicon (Si) | C11: 0.5 | E11: >0.70
C13: ----------------------------mg/kg-------------------------
A14: Iron (Fe) | C14: ----- | E14: 50-105
A15: Manganese (Mn) | C15: ----- | E15: 12-100
A16: Zinc (Zn) | C16: 15 | E16: 16-32
A17: Copper (Cu) | C17: 3 | E17: 4-8
A18: Boron (B) | C18: 4 | E18: 15-20
A19: Molybdenum (Mo) | C19: 0.05 | E19: -----
A21: From Anderson and Bowen (1990), except for Si values (J. M. McCray,
A22: unpublished data). All values are from Florida except S and Mo, which
A23: are from Louisiana.
